Cogmind - Beta 11 X5 @@@ ROGUE MODE // 2021.06.17 @ 12:57:56 Player: rusmal Result: Self-destructed Performance ------------- Evolutions (4) 2000 Regions Visited (12) 2400 Robots Destroyed (128) 640 Value Destroyed (3966) 3966 Prototype IDs (42) 840 Alien Tech Used (0) 0 Bonus (804) 804 TOTAL SCORE: 10650 Bonus ------- High Alert Combat Kills 254 Follower Combat Kills 435 Aligned with FarCom 300 Friendly Fire -185 Cogmind --------- Core Integrity 793/850 Matter 19/300 Energy 255/500 System Corruption 1% Temperature Cool (0) Movement Treading (260) Ox1 Location -6/Factory Parts ------- > --- POWER (2) -------- Enhanced Nuclear Core Angular Momentum Engine > --- PROPULSION (4) --- Medium Treads Improved Medium Treads > --- UTILITY (6) ------ Improved Heat Sink Improved Cooling System High-capacity Storage Unit Improved Signal Interpreter Makeshift Armor Plating Improved Shield Generator > --- WEAPON (3) ------- Advanced Beam Rifle Guided EMP Blaster > --- INVENTORY (20) --- Improved Terrain Scanner Improved Medium Armor Plating Improved Medium Armor Plating Makeshift Armor Plating Hacking Suite Hacking Drone Bay (1/1) Heavy Particle Gun Heavy Particle Gun Heavy Particle Gun Advanced Beam Rifle Gatling Laser Gatling Laser Phase Cannon Dirty Datajack (20) CR-A16's Behemoth Slayer Peak State ------------ > --- POWER ------------ Enhanced Nuclear Core Neutrino Core > --- PROPULSION ------- Light Treads Medium Treads Medium Treads Improved Medium Treads > --- UTILITY ---------- High-capacity Storage Unit Improved Signal Interpreter Makeshift Armor Plating Improved Shield Generator Hacking Suite Hacking Drone Bay > --- WEAPON ----------- Heavy Particle Gun Advanced Beam Rifle CR-A16's Behemoth Slayer > --- INVENTORY -------- Improved Medium Treads Improved Heat Sink Improved Cooling System Energy Well Improved Terrain Scanner Improved Medium Armor Plating Improved Medium Armor Plating Makeshift Armor Plating Hacking Suite Heavy Particle Gun Heavy Particle Gun Heavy Particle Gun Advanced Beam Rifle Gatling Laser Gatling Laser Beamcaster Phase Cannon Guided EMP Blaster Dirty Datajack [Rating: 74] Favorites ----------- Power Enhanced Nuclear Core Engine Ion Engine Power Core Enhanced Nuclear Core Reactor Cold Fusion Reactor Propulsion Improved Treads Treads Improved Treads Leg Aluminum Leg Wheel Armored Wheel Utility Improved Heat Sink Device Improved Heat Sink Storage High-capacity Storage Unit Processor Improved Signal Interpreter Hackware Hacking Suite Protection Hardened Medium Armor Plating Weapon Shotgun Energy Gun Heavy Particle Gun Ballistic Gun Shotgun Ballistic Cannon AWS/Autocannon Launcher Grenade Launcher Slashing Weapon Katana Piercing Weapon CR-A16's Behemoth Slayer Build | -11 -10 -10 -10 -9 -8 -8 -7 -7 -7 -7 -6 -6 ------- Run | Scr Mat Min Exi Min Mat Sto Fac Low Low Zio Pro Fac Slots Evolved 8 | . . . . . 4 . 2 . . . . 2 Power 1 | . . . . . . . . . . . . 1 Propulsion 2 | . . . . . 1 . 1 . . . . . Utility 4 | . . . . . 2 . 1 . . . . 1 Weapon 1 | . . . . . 1 . . . . . . . Parts Attached 175 | 6 16 3 3 1 49 28 20 12 3 7 9 18 Power 12 | 1 1 . . . 2 1 3 2 . . . 2 Engine 5 | 1 1 . . . . . 2 . . . . 1 Core 6 | . . . . . 2 1 . 2 . . . 1 Reactor 1 | . . . . . . . 1 . . . . . Propulsion 29 | 2 3 . 1 . 4 3 4 4 2 . 5 1 Treads 22 | . 1 . . . 4 3 4 4 1 . 4 1 Leg 3 | 2 . . . . . . . . . . 1 . Wheel 4 | . 2 . 1 . . . . . 1 . . . Hover . | . . . . . . . . . . . . . Flight . | . . . . . . . . . . . . . Utility 34 | 1 5 . 1 1 4 4 7 3 . 1 2 5 Device 16 | . 1 . . . 1 3 4 1 . . 2 4 Storage 5 | 1 2 . 1 . 1 . . . . . . . Processor 2 | . . . . . . . 2 . . . . . Hackware 1 | . . . . . . . . . . . . 1 Protection 10 | . 2 . . 1 2 1 1 2 . 1 . . Artifact . | . . . . . . . . . . . . . Weapon 100 | 2 7 3 1 . 39 20 6 3 1 6 2 10 Energy Gun 47 | 1 2 . . . 10 16 4 2 1 5 1 5 Energy Cannon . | . . . . . . . . . . . . . Ballistic Gun 24 | 1 3 2 . . 18 . . . . . . . Ballistic Cannon 15 | . . . . . 11 4 . . . . . . Launcher 9 | . 2 1 1 . . . 1 1 . 1 . 2 Special Weapon . | . . . . . . . . . . . . . Impact Weapon . | . . . . . . . . . . . . . Slashing Weapon 1 | . . . . . . . 1 . . . . . Piercing Weapon 4 | . . . . . . . . . . . 1 3 Special Melee Weapon . | . . . . . . . . . . . . . Unidentified Prototypes 13 | . . . . . 4 4 3 . . 1 1 . Corrupted Parts 1 | . . . . . . . . . 1 . . . System Corruption 4 | . . . . . . . . . 4 . . . Parts Lost 19 | . . . . 3 1 . 1 5 2 1 1 5 Power 1 | . . . . . . . . . . . . 1 Propulsion 9 | . . . . . . . 1 3 1 . 1 3 Utility 4 | . . . . 1 1 . . 2 . . . . Weapon 5 | . . . . 2 . . . . 1 1 . 1 Highest Loss Streak 5 | . . . . 3 1 . 1 5 2 1 1 5 Average Slot Usage (%) 91 | . 98 100 100 98 73 90 97 85 98 99 99 99 Engine 4 | . 14 14 14 14 . . 4 3 . . . . Core 5 | . . . . . 8 9 2 3 7 7 7 12 Treads 21 | . . 14 14 14 23 26 28 16 28 30 29 26 Wheel 5 | . 24 14 14 14 3 . . . . . . . Device 12 | . 3 14 14 12 7 12 21 14 15 15 15 15 Storage 9 | . 14 14 14 14 9 9 7 7 7 7 7 6 Processor 2 | . . . . . . . . 7 7 7 7 6 Protection 6 | . 9 . . 1 7 9 7 7 7 7 7 6 Energy Gun 12 | . 14 . . . . 22 22 22 22 22 21 17 Ballistic Gun 7 | . 13 27 28 13 6 . . . . . . . Ballistic Cannon 1 | . . . . . 6 1 . . . . . . Naked Turns . | . . . . . . . . . . . . . Heaviest Build 124 | 14 33 32 32 32 124 124 75 74 75 75 70 83 Greatest Support 108 | 20 24 23 23 12 69 69 88 98 98 98 106 108 Greatest Overweight (x) 10 | 4 10 2 2 2 8 1 1 3 7 . . . Average Overweight (x) . | . 1 1 1 2 2 . . . . . . . Largest Inventory Capacity 20 | 8 15 15 15 15 20 20 20 20 20 20 20 20 Average Capacity 17 | 7 14 15 15 15 16 20 20 20 20 20 20 20 Most Carried 20 | 4 15 15 15 15 20 20 20 20 20 20 20 20 Average Carried 17 | 2 11 15 14 14 15 19 19 17 18 19 19 19 Final Capacity 20 | 8 15 15 15 15 20 20 20 20 20 20 20 20 Final Carried 20 | 4 15 15 15 14 20 20 19 18 20 20 20 15 Class Distribution -------------------- 41% | Skirmisher 27% | Mutant 20% | Scavenger-Tank 7% | Tank Dominant Class ---------------- Mutant | -10/Materials Mutant | -10/Mines Mutant | -10/Exiles Mutant | -9/Mines Skirmisher | -8/Materials Skirmisher | -8/Storage Skirmisher | -7/Factory Tank | -7/Lower Caves Scavenger-Tank | -7/Lower Caves Scavenger-Tank | -7/Zion Scavenger-Tank | -6/Proximity Caves Scavenger-Tank | -6/Factory Resources | -11 -10 -10 -10 -9 -8 -8 -7 -7 -7 -7 -6 -6 ----------- Run | Scr Mat Min Exi Min Mat Sto Fac Low Low Zio Pro Fac Matter Collected 2509 | 260 300 104 20 35 793 364 215 197 44 72 85 20 Remotely . | . . . . . . . . . . . . . Salvage Created 5985 | . 442 28 . 14 1239 1521 773 1405 150 . 175 238 Parts 251 | . 27 2 . 5 77 56 28 28 6 . 11 11 Haulers Intercepted 16 | . 2 . . . 6 6 2 . . . . . Recyclers Shooed 6 | . 1 . . . 1 3 1 . . . . . Parts Field Recycled . | . . . . . . . . . . . . . Retrieved Matter . | . . . . . . . . . . . . . Parts Self-Destructed 47 | . . . . . . . . 14 14 . 19 . Prevented 2 | . . . . . . . . . 2 . . . Kills | -11 -10 -10 -10 -9 -8 -8 -7 -7 -7 -7 -6 -6 ------- Run | Scr Mat Min Exi Min Mat Sto Fac Low Low Zio Pro Fac Combat Hostiles Destroyed 90 | . 12 1 . . 26 17 13 12 2 . 4 3 Guns 57 | . 12 1 . . 5 13 11 9 2 . 3 1 Cannons 24 | . . . . . 21 3 . . . . . . AOE 5 | . . . . . . . . 3 . . . 2 Classes Destroyed 15 | . 4 . . 2 3 1 3 1 . . 1 . Worker 5 | . . . . 1 2 1 . . . . . 1 Tunneler 1 | . . . . 1 . . . . . . . . Hauler 16 | . 2 . . . 6 6 2 . . . . . Recycler 9 | . 1 . . . 2 5 1 . . . . . Operator 1 | . . . . . 1 . . . . . . . Watcher 5 | . . . . . 4 1 . . . . . . Swarmer 23 | . 6 . . . 3 . 3 7 2 . 2 . Grunt 41 | . 6 1 . . 18 9 5 1 . . 1 . Brawler 4 | . . . . . . . 1 3 . . . . Protector 1 | . . . . . . . 1 . . . . . Sentry 16 | . . . . . 5 7 1 1 . . . 2 Hunter 2 | . . . . . . 1 . . . . . 1 Programmer 3 | . . . . . . . 3 . . . . . Behemoth 1 | . . . . . . . . . . . 1 . Samaritan 7 | . . . . . . . . 5 2 . . . Best Kill Streak 8 | . 3 1 . 2 5 7 3 8 2 . 2 2 Combat Bots Only 8 | . 3 1 . . 3 3 3 8 2 . 2 2 Max Kills in Single Turn 2 | . 2 1 . 2 1 2 2 2 1 . 1 1 Gunslinging 1 | . 1 . . . . . 1 . . . . . Exploded 2 | . . . . . . . . 2 . . . 1 Melee . | . . . . . . . . . . . . . Uniques/NPCs Destroyed . | . . . . . . . . . . . . . Combat | -11 -10 -10 -10 -9 -8 -8 -7 -7 -7 -7 -6 -6 -------- Run | Scr Mat Min Exi Min Mat Sto Fac Low Low Zio Pro Fac Damage Taken 5726 | . 559 106 . 356 695 732 729 1013 174 137 289 936 Core 605 | . 106 28 . 76 76 49 47 84 18 . 64 57 Absorbed by Shields 260 | . . . . . . . . . . . . 260 Core Remaining (%) 65 | 100 . . . 16 . 77 . . . . 69 . Volleys Fired 269 | . 45 4 . 3 31 74 36 39 6 2 6 23 Largest 3 | . 2 2 . 1 3 3 3 3 3 3 3 3 Hottest 206 | . 115 46 . 30 173 181 206 181 206 196 191 191 Shots Fired 736 | . 85 7 . 3 156 189 108 106 19 6 18 39 Gun 626 | . 81 6 . . 89 166 108 104 19 6 18 29 Cannon 90 | . . . . . 67 23 . . . . . . Launcher 20 | . 4 1 . 3 . . . 2 . . . 10 Special . | . . . . . . . . . . . . . Kinetic 215 | . 42 6 . . 144 23 . . . . . . Thermal 501 | . 39 . . . 12 166 108 104 19 6 18 29 Explosive 8 | . 4 1 . 3 . . . . . . . . Electromagnetic 12 | . . . . . . . . 2 . . . 10 Robot Hit Streak 23 | . 15 5 . . 20 23 16 10 3 2 5 9 Robot Miss Streak 5 | . 5 1 . . 4 2 4 3 1 1 5 3 Penetration Max . | . . . . . . . . . . . . . Secondary Targets 10 | . 2 . . . 1 1 2 3 . . 1 . Max Gunslinging Chain 1 | . 1 . . . 1 1 1 1 . . 1 . Autonomous 77 | . . . . . 67 10 . . . . . . Shots Hit Robots 480 | . 56 6 . . 118 107 81 69 10 4 10 19 Core Hits 230 | . 23 3 . 6 50 39 29 42 8 3 6 21 Critical Kills . | . . . . . . . . . . . . . Critical Parts Destroyed . | . . . . . . . . . . . . . Critical Strikes 29 | . 1 . . . 12 6 3 4 1 . 2 . Burn 17 | . 1 . . . 1 5 3 4 1 . 2 . Blast 12 | . . . . . 11 1 . . . . . . Melee Attacks 10 | . . . . . . . 3 . . . 2 5 Impact . | . . . . . . . . . . . . . Slashing 3 | . . . . . . . 3 . . . . . Piercing 7 | . . . . . . . . . . . 2 5 Sneak Attacks . | . . . . . . . . . . . . . Combat Hostiles . | . . . . . . . . . . . . . Follow-up Attacks . | . . . . . . . . . . . . . Damage Inflicted 14091 | . 798 167 . 100 5508 2551 1781 1728 189 77 254 938 Guns 7790 | . 753 98 . . 927 1886 1775 1531 189 77 217 337 Cannons 5246 | . . . . . 4581 665 . . . . . . Explosions 1011 | . 45 69 . 100 . . . 197 . . . 600 Melee 37 | . . . . . . . . . . . 37 . Ramming 7 | . . . . . . . 6 . . . . 1 Kinetic 6453 | . 370 98 . . 5320 665 . . . . . . Thermal 6672 | . 383 . . . 188 1886 1775 1620 189 77 217 337 Explosive 214 | . 45 69 . 100 . . . . . . . . Electromagnetic 708 | . . . . . . . . 108 . . . 600 Impact . | . . . . . . . . . . . . . Slashing . | . . . . . . . . . . . . . Piercing 37 | . . . . . . . . . . . 37 . Highest Corruption 8 | . . . . . . . 4 4 8 8 . 1 Average Corruption 4 | . . . . . . . 3 4 5 8 . 1 Corruption Purged . | . . . . . . . . . . . . . Effects 61 | . . . . . . . 24 21 12 4 . . Message Errors 14 | . . . . . . . 7 4 2 1 . . Matter Fused 14 | . . . . . . . 4 7 2 1 . . Heat Flow Errors 13 | . . . . . . . 7 4 1 1 . . Energy Discharges 10 | . . . . . . . 3 2 5 . . . Data Loss (minor) 7 | . . . . . . . 3 3 1 . . . Data Loss (major) 1 | . . . . . . . . . . 1 . . Misfires 1 | . . . . . . . . . 1 . . . Weapon Failures 1 | . . . . . . . . 1 . . . . Overload Shots . | . . . . . . . . . . . . . Overflow Damage 930 | . . . . . 770 139 . 21 . . . . Projectiles 909 | . . . . . 770 139 . . . . . . Explosions 21 | . . . . . . . . 21 . . . . Melee . | . . . . . . . . . . . . . Knockbacks 29 | . . . . . 25 4 . . . . . . Impact . | . . . . . . . . . . . . . Kinetic 24 | . . . . . 20 4 . . . . . . Secondary 5 | . . . . . 5 . . . . . . . Self-Inflicted Damage 24 | . 24 . . . . . . . . . . . Shots 1 | . 1 . . . . . . . . . . . Rammed 1 | . . . . . . . . . . . . 1 Targets Rammed 2 | . . . . . . . 1 . . . . 1 Kicked . | . . . . . . . . . . . . . Crushed 1 | . . . . . . . 1 . . . . . Highest Temperature 407 | . 261 . . . 144 352 220 223 114 96 177 407 Average Temperature 73 | . 94 . . . 30 91 43 43 39 54 84 114 Received Heat Transfer 1655 | . 177 60 . . 396 423 264 198 6 . 60 71 Effects 7 | . 3 . . . . 1 . . . . . 3 Energy Bleed 1 | . 1 . . . . . . . . . . . Interference 6 | . 2 . . . . 1 . . . . . 3 Siege Activations . | . . . . . . . . . . . . . Robots Corrupted . | . . . . . . . . . . . . . Combat Hostiles . | . . . . . . . . . . . . . Parts Fried 3 | . . . . . . . . 1 . . . 2 Impact Corruptions 2 | . . . . . 2 . . . . . . . Robots Melted 3 | . . . . . . 1 2 . . . . . Combat Hostiles 3 | . . . . . . 1 2 . . . . . Parts Melted 37 | . . . . . 1 11 12 9 . . 1 3 Heat Transferred 13852 | . 1110 . . . 444 4070 3291 3171 445 174 518 629 Parts Sabotaged . | . . . . . . . . . . . . . Parts Stolen . | . . . . . . . . . . . . . Parts Stripped . | . . . . . . . . . . . . . Power Chain Reactions 1 | . . . . . . . . 1 . . . . Missiles Intercepted . | . . . . . . . . . . . . . Alert | -11 -10 -10 -10 -9 -8 -8 -7 -7 -7 -7 -6 -6 ------- Run | Scr Mat Min Exi Min Mat Sto Fac Low Low Zio Pro Fac Peak Influence 756 | . 100 232 . 10 259 261 756 . . . . 85 Initial 59 | . . 37 . . . 51 46 . . . . 59 Average 119 | . 34 38 . . 89 97 400 . . . . 38 Maximum Alert Level 3 | . . 1 . . 1 1 3 . . . . . Low Security (%) 84 | 100 100 90 . 100 89 93 40 . . . . 100 Level 1 5 | . . 9 . . 10 6 . . . . . . Level 2 6 | . . . . . . . 43 . . . . . Level 3 2 | . . . . . . . 16 . . . . . Level 4 . | . . . . . . . . . . . . . Level 5 . | . . . . . . . . . . . . . High Security . | . . . . . . . . . . . . . Max Security . | . . . . . . . . . . . . . Squads Dispatched 21 | . 2 . . . 5 1 9 . . . . 4 Investigation 6 | . 2 . . . 1 1 . . . . . 2 Extermination 3 | . . . . . . . 3 . . . . . Reinforcement 5 | . . . . . 1 . 3 . . . . 1 Assault 3 | . . . . . . . 3 . . . . . Garrison 4 | . . . . . 3 . . . . . . 1 Intercept . | . . . . . . . . . . . . . Construction Impeded 2 | . . . . . . . 1 . . . . 1 Haulers Reinforced 1 | . . . . . . . 1 . . . . . Cargo Convoy Interrupts 1 | . . . . . . . 1 . . . . . Stealth | -11 -10 -10 -10 -9 -8 -8 -7 -7 -7 -7 -6 -6 --------- Run | Scr Mat Min Exi Min Mat Sto Fac Low Low Zio Pro Fac Distress Signals 9 | . 2 . . . 1 3 1 . . . . 2 Communications Jammed . | . . . . . . . . . . . . . Distress Signals . | . . . . . . . . . . . . . Times Spotted 132 | . 18 4 . 2 27 21 18 13 10 1 9 9 Peak Tracking Total 9 | . 4 2 . 2 3 4 5 9 5 1 4 7 Tactical Retreats 3 | . . . . . . . 2 . 1 . . . Traps | -11 -10 -10 -10 -9 -8 -8 -7 -7 -7 -7 -6 -6 ------- Run | Scr Mat Min Exi Min Mat Sto Fac Low Low Zio Pro Fac Traps Triggered 7 | . 2 . . . 1 2 1 . . . . 1 Indirectly 1 | . . . . . . . . . . . . 1 Trap Hack Attempts . | . . . . . . . . . . . . . Triggered . | . . . . . . . . . . . . . Disarmed . | . . . . . . . . . . . . . Reprogrammed . | . . . . . . . . . . . . . Reused . | . . . . . . . . . . . . . Traps Extracted . | . . . . . . . . . . . . . Installed . | . . . . . . . . . . . . . Triggered 3 | . . . . . . . 1 . 1 . 1 . Machines | -11 -10 -10 -10 -9 -8 -8 -7 -7 -7 -7 -6 -6 ---------- Run | Scr Mat Min Exi Min Mat Sto Fac Low Low Zio Pro Fac Machines Disabled 7 | . . 1 . . 1 4 . . . . . 1 Max in Single Turn 1 | . . . . . 1 1 . . . . . 1 Garrison Access 1 | . . . . . . 1 . . . . . . Machines Sabotaged . | . . . . . . . . . . . . . Garrisons Compromised 1 | . . . . . . . 1 . . . . . Overloaded Fab Kills . | . . . . . . . . . . . . . Fab Network Shutdowns . | . . . . . . . . . . . . . Hacking | -11 -10 -10 -10 -9 -8 -8 -7 -7 -7 -7 -6 -6 --------- Run | Scr Mat Min Exi Min Mat Sto Fac Low Low Zio Pro Fac Machines Accessed 46 | . 10 . 2 . 11 9 8 . 1 . . 5 Terminals 27 | . 7 . . . 9 6 3 . . . . 2 Fabricators 4 | . . . . . . . 3 . . . . 1 Repair Stations 5 | . 1 . . . 1 1 2 . . . . . Recycling Units 3 | . 2 . . . . 1 . . . . . . Scanalyzers 1 | . . . . . 1 . . . . . . . Garrison Access 3 | . . . . . . 1 . . . . . 2 Total Hacks 123 | . 24 . 2 . 41 26 20 . 1 . . 9 Successful 63 | . 15 . 2 . 22 12 9 . 1 . . 2 Failed 60 | . 9 . . . 19 14 11 . . . . 7 Catastrophic 11 | . 1 . . . 1 2 4 . . . . 3 Database Lockouts . | . . . . . . . . . . . . . Manual 35 | . 8 . 1 . 19 4 2 . . . . 1 Terminals 74 | . 17 . . . 33 18 3 . . . . 3 Fabricators 11 | . . . . . . . 8 . . . . 3 Repair Stations 21 | . 3 . . . 4 5 9 . . . . . Recycling Units 5 | . 4 . . . . 1 . . . . . . Scanalyzers 4 | . . . . . 4 . . . . . . . Garrison Access 5 | . . . . . . 2 . . . . . 3 Terminal Hacks 32 | . 9 . 2 . 11 7 . . 1 . . 2 Record 1 | . . . 1 . . . . . . . . . Robot Schematic 1 | . . . . . . 1 . . . . . . Robot Analysis 2 | . . . . . 1 1 . . . . . . Prototype ID Bank 3 | . 2 . . . 1 . . . . . . . Open Door 2 | . . . . . . 1 . . 1 . . . Branch Access Points 1 | . . . . . 1 . . . . . . . Terminal Index 1 | . . . . . . . . . . . . 1 Alert Level 6 | . 3 . . . 2 1 . . . . . . Unreport Threat 8 | . 1 . . . 3 3 . . . . . 1 Hauler Manifests 4 | . 2 . . . 2 . . . . . . . Zone Layout 2 | . 1 . . . 1 . . . . . . . EX-Prototype ID Bank 1 | . . . 1 . . . . . . . . . Fabricator Hacks 4 | . . . . . . . 4 . . . . . Load Schematic 3 | . . . . . . . 3 . . . . . Build 1 | . . . . . . . 1 . . . . . Repair Station Hacks 12 | . 2 . . . 4 3 3 . . . . . Scan Component 7 | . 1 . . . 2 2 2 . . . . . Repair 5 | . 1 . . . 2 1 1 . . . . . Recycling Unit Hacks 4 | . 3 . . . . 1 . . . . . . Report Inventory 3 | . 2 . . . . 1 . . . . . . Retrieve Components 1 | . 1 . . . . . . . . . . . Scanalyzer 2 | . . . . . 2 . . . . . . . Insert Component 1 | . . . . . 1 . . . . . . . Analyze 1 | . . . . . 1 . . . . . . . Garrison Access Hacks 1 | . . . . . . 1 . . . . . . Seal Access 1 | . . . . . . 1 . . . . . . Unauthorized Hacks 8 | . 1 . . . 5 . 2 . . . . . Terminals 7 | . 1 . . . 5 . 1 . . . . . Botnet 7 | . 1 . . . 5 . 1 . . . . . Fabricators 1 | . . . . . . . 1 . . . . . Prioritize 1 | . . . . . . . 1 . . . . . Repair Stations . | . . . . . . . . . . . . . Recycling Units . | . . . . . . . . . . . . . Scanalyzers . | . . . . . . . . . . . . . Garrison Access . | . . . . . . . . . . . . . Data Cores Recovered . | . . . . . . . . . . . . . Used . | . . . . . . . . . . . . . Hacking Detections 32 | . 6 . . . 9 7 6 . . . . 4 Full Trace Events 1 | . . . . . . . . . . . . 1 Feedback Events 1 | . . . . . . . . . . . . 1 Corruption 1 | . . . . . . . . . . . . 1 Feedback Blocked . | . . . . . . . . . . . . . Robot Schematics Acquired 1 | . . . . . . 1 . . . . . . Robots Built 3 | . . . . . . . 3 . . . . . Matter 186 | . . . . . . . 186 . . . . . Time 99 | . . . . . . . 99 . . . . . Total Robot Build Rating 6 | . . . . . . . 6 . . . . . Part Schematics Acquired 1 | . . . . . 1 . . . . . . . Parts Built . | . . . . . . . . . . . . . Matter . | . . . . . . . . . . . . . Time . | . . . . . . . . . . . . . Total Part Build Rating . | . . . . . . . . . . . . . Parts Repaired 5 | . 1 . . . 2 1 1 . . . . . Time 166 | . 26 . . . 70 32 38 . . . . . Parts Recycled . | . . . . . . . . . . . . . Recycled Matter . | . . . . . . . . . . . . . Retrieved Matter . | . . . . . . . . . . . . . Retrieved Components 10 | . 10 . . . . . . . . . . . Parts Scanalyzed 1 | . . . . . 1 . . . . . . . Part Schematics Acquired 1 | . . . . . 1 . . . . . . . Parts Damaged . | . . . . . . . . . . . . . Bothacking | -11 -10 -10 -10 -9 -8 -8 -7 -7 -7 -7 -6 -6 ------------ Run | Scr Mat Min Exi Min Mat Sto Fac Low Low Zio Pro Fac Used RIF Installer . | . . . . . . . . . . . . . Robots Hacked . | . . . . . . . . . . . . . Non-combat . | . . . . . . . . . . . . . Combat . | . . . . . . . . . . . . . Robot Hacks Applied . | . . . . . . . . . . . . . Relay Couplers Released . | . . . . . . . . . . . . . Robots Rewired 2 | . . . . . . . . 2 . . . . Allies Hacked 1 | . . . . . . . 1 . . . . . Hacks Repelled . | . . . . . . . . . . . . . Allies | -11 -10 -10 -10 -9 -8 -8 -7 -7 -7 -7 -6 -6 -------- Run | Scr Mat Min Exi Min Mat Sto Fac Low Low Zio Pro Fac Total Allies 27 | . . 1 . . . . 21 2 . 3 . . Largest Group 17 | . . 1 . . . . 17 2 2 4 4 1 Highest-Rated Group 685 | . . 31 . . . . 685 48 48 112 112 29 Highest-Rated Ally 74 | . . 31 . . . . 74 32 32 32 32 29 Total Orders 2 | . . . . . . . . . . . . 2 EXPLORE 1 | . . . . . . . . . . . . 1 RETURN 1 | . . . . . . . . . . . . 1 Ally Attacks 88 | . . 14 . . . . 35 . 11 3 25 . Total Damage 1903 | . . 251 . . . . 710 . 230 96 616 . Kills 23 | . . 6 . . . . 6 . 5 1 5 . Allies Corrupted . | . . . . . . . . . . . . . Allies Melted . | . . . . . . . . . . . . . Intel | -11 -10 -10 -10 -9 -8 -8 -7 -7 -7 -7 -6 -6 ------- Run | Scr Mat Min Exi Min Mat Sto Fac Low Low Zio Pro Fac Robot Analysis Total 2 | . . . . . 1 1 . . . . . . Derelict Logs Recovered 8 | . . 2 . 1 . . . 2 1 2 . . Drone Launches 2 | . . . . . . . . . . . . 2 Drone Recoveries 2 | . . . . . . . . . . . . 2 Exploration | -11 -10 -10 -10 -9 -8 -8 -7 -7 -7 -7 -6 -6 ------------- Run | Scr Mat Min Exi Min Mat Sto Fac Low Low Zio Pro Fac Turns Passed 14265 | 81 996 1851 620 152 2911 1669 1610 1168 730 1270 476 731 Spaces Moved 6463 | 50 622 763 318 120 1056 552 766 422 421 797 270 306 Core 22 | 19 3 . . . . . . . . . . . Treads 5065 | . . 641 166 . 737 552 766 422 408 797 270 306 Legs 95 | 31 64 . . . . . . . . . . . Wheels 1281 | . 555 122 152 120 319 . . . 13 . . . Hover . | . . . . . . . . . . . . . Flight . | . . . . . . . . . . . . . Fastest Speed 50 | 50 105 120 120 120 120 160 156 156 156 156 156 160 Average Speed 185 | 137 115 237 193 120 218 208 170 239 164 156 158 160 Slowest Speed 550 | 250 550 260 260 120 260 260 255 445 255 156 160 160 Overloaded Moves . | . . . . . . . . . . . . . Propulsion Burnouts . | . . . . . . . . . . . . . Robots Hopped . | . . . . . . . . . . . . . Cave-ins Triggered . | . . . . . . . . . . . . . Exploration Rate (%) 57 | 4 96 95 65 40 75 84 20 60 63 82 53 12 Regions Visited 12 Branch Regions 8 Pre-discovered Areas 4 | . . 1 1 1 . . . . . 1 . . Known Exits Taken 6 | . . . . . 1 . 1 1 1 1 1 . Unknown Exits Taken 6 | 1 1 1 1 1 . 1 . . . . . . Scrap Searched 9 | . . 1 . 1 . . . . 2 1 4 . Spaces Dug 24 | . 4 9 . . . 3 3 . . . . 5 Terrain Destroyed 76 | . 18 9 . 18 12 7 3 4 . . . 5 Melee 8 | . . . . . . . 3 . . . . 5 Projectile 19 | . . . . . 12 7 . . . . . . AOE 49 | . 18 9 . 18 . . . 4 . . . . Terrain Rammed . | . . . . . . . . . . . . . Walls Destroyed . | . . . . . . . . . . . . . Machines Disabled . | . . . . . . . . . . . . . Actions | -11 -10 -10 -10 -9 -8 -8 -7 -7 -7 -7 -6 -6 --------- Run | Scr Mat Min Exi Min Mat Sto Fac Low Low Zio Pro Fac Total 8224 | 59 818 794 325 125 1623 934 980 495 443 823 301 504 Wait 1051 | . 100 23 . . 386 253 131 3 9 5 2 139 Move 6451 | 49 621 762 317 119 1055 551 765 421 420 796 269 306 Hop . | . . . . . . . . . . . . . Pick Up 86 | 4 17 . 1 1 35 6 6 . 3 4 5 4 Fast Attach 71 | 6 8 . . . 19 13 8 6 2 4 2 3 Attach 61 | . 1 . . 1 28 11 4 5 1 2 2 6 Detach 52 | . 5 . . . 26 8 4 4 1 1 1 2 Swap 43 | . 7 3 3 . 2 4 8 1 . 1 5 9 Drop 112 | . 14 . 4 1 41 14 14 2 1 8 7 6 Fire 269 | . 45 4 . 3 31 74 36 39 6 2 6 23 Melee 10 | . . . . . . . 3 . . . 2 5 Ram . | . . . . . . . . . . . . . Kick . | . . . . . . . . . . . . . Crush 2 | . . . . . . . 1 . . . . 1 Escape Stasis . | . . . . . . . . . . . . . Rewire 16 | . . 2 . . . . . 14 . . . . Trap . | . . . . . . . . . . . . . Miscellaneous . | . . . . . . . . . . . . . Route ------- -11/Scrapyard -10/Materials (discovered 5 exits: [*Mat x3] / [*Min x2]) -10/Mines (discovered 3 exits: [*Mat x2] / *Exi) -10/Exiles -9/Mines -8/Materials (discovered 3 exits: *Fac x2 / *Sto) -8/Storage -7/Factory -7/Lower Caves -7/Lower Caves -7/Zion (discovered 2 exits: Dee / *Pro) -6/Proximity Caves -6/Factory (discovered 1 exit: *Fac) History --------- Turn | Location | Event 39 | -11/Scrapyard | Discovered new exit (range 15) 82 | -11/Scrapyard | Entered Materials 306 | -10/Materials | Build established: Mutant 375 | -10/Materials | Discovered new exit (range 14) 419 | -10/Materials | Repaired Lgt. Armor Plating 657 | -10/Materials | Discovered new exit (range 6) 684 | -10/Materials | Discovered new exit (range 14) 808 | -10/Materials | Discovered new exit (range 12) 966 | -10/Materials | Discovered new exit (range 16) 1078 | -10/Materials | Entered Mines 1081 | -10/Mines | Received a Mining Laser from a helpful Derelict 1144 | -10/Mines | Discovered new exit (range 12) 1221 | -10/Mines | Learned Materials garrison access intel 1238 | -10/Mines | Discovered new exit (range 5) 1241 | -10/Mines | Core integrity fell below 50% 1297 | -10/Mines | Learned location of Storage (-8) 2916 | -10/Mines | Deemed a non-threat by the Exiles lab entrance 2919 | -10/Mines | Discovered new exit (range 5) 2929 | -10/Mines | Entered Exiles 2994 | -10/Exiles | Met 8R-AWN 3031 | -10/Exiles | Met EX-HEX 3109 | -10/Exiles | Met EX-BIN 3187 | -10/Exiles | Met EX-DEC 3254 | -10/Exiles | Learned location of Zion (-7) 3340 | -10/Exiles | Aligned with FarCom system 3343 | -10/Exiles | Given EX-Vault access code 3381 | -10/Exiles | Opened EX-Vault 3390 | -10/Exiles | Found AWS/Autocannon 3415 | -10/Exiles | Warned to stay clear of 0b10 Research branches 3537 | -10/Exiles | Discovered new exit (range 11) 3549 | -10/Exiles | Left Exiles lab with AWS/Autocannon 3549 | -10/Exiles | Entered Mines 3658 | -9/Mines | Assembled infested the area 3663 | -9/Mines | Assisted by a Guerilla fighting off Assembled 3675 | -9/Mines | A weapon hastily lodged in a ceiling crevice suddenly fell to the ground 3692 | -9/Mines | Discovered new exit (range 10) 3699 | -9/Mines | Core integrity fell below 20% 3701 | -9/Mines | Entered Materials 3701 | -8/Materials | Evolved 4 slots: Propulsion x1, Utility x2, Weapon x1 3702 | -8/Materials | Loaded intel: 1 garrison access location 3724 | -8/Materials | Lost 3 parts (1u2w) 3788 | -8/Materials | Identified exit to Storage 3870 | -8/Materials | Garrison activated, responded to threat 3976 | -8/Materials | Build established: Skirmisher 4591 | -8/Materials | Discovered new exit (range 10) 5201 | -8/Materials | Repaired Hvy. Armor Plating 5234 | -8/Materials | Repaired Imp. Treads 5518 | -8/Materials | Discovered new exit (range 14) 6612 | -8/Materials | Entered Storage 7856 | -8/Storage | Discovered new exit (range 8) 8117 | -8/Storage | Repaired Imp. Treads 8281 | -8/Storage | Entered Factory 8281 | -7/Factory | Evolved 2 slots: Propulsion x1, Utility x1 8933 | -7/Factory | Cargo convoy interrupted 9081 | -7/Factory | First assault squad dispatched 9185 | -7/Factory | Fabricated B-36 Bruiser (x3) 9575 | -7/Factory | Repaired Imp. Heat Sink 9860 | -7/Factory | Discovered new exit (range 4) 9867 | -7/Factory | Identified exit to Lower Caves 9891 | -7/Factory | Entered Lower Caves 9978 | -7/Lower Caves | Attracted the attention of an 0b10 outpost 10037 | -7/Lower Caves | Destroyed 8 combat bots 10043 | -7/Lower Caves | Lost 5 parts (3n2u) 10202 | -7/Lower Caves | Build established: Tank 10322 | -7/Lower Caves | Learned Factory garrison access intel 10882 | -7/Lower Caves | Learned Factory interactive machine intel 10991 | -7/Lower Caves | Discovered new exit (range 8) 11057 | -7/Lower Caves | Identified exit to Lower Caves 11059 | -7/Lower Caves | Entered another Lower Caves area 11059 | -7/Lower Caves | Accompanied by 2 allies 11127 | -7/Lower Caves | Encountered a Warlord checkpoint 11148 | -7/Lower Caves | Learned Factory terminal intel 11321 | -7/Lower Caves | Build established: Scavenger-Tank 11396 | -7/Lower Caves | Spotted B-75 Beast 11649 | -7/Lower Caves | Discovered new exit (range 15) 11787 | -7/Lower Caves | Identified exit to Zion 11789 | -7/Lower Caves | Entered Zion 11789 | -7/Zion | Accompanied by 1 ally 11882 | -7/Zion | System corruption cleaned by Quarantine Array 11969 | -7/Zion | Discovered new exit (range 15) 11994 | -7/Zion | Given the Hacking Drone Bay 11995 | -7/Zion | Found Prototype Device 12227 | -7/Zion | Learned Factory security intel 12234 | -7/Zion | Found Prototype Launcher 12234 | -7/Zion | Identified Gui. Missile Launcher 12488 | -7/Zion | Gained Derelict followers 12624 | -7/Zion | Identified exit to Deep Caves 12749 | -7/Zion | Found CR-A16's Pointy Stick 12820 | -7/Zion | Learned 4 Factory zone layouts 12879 | -7/Zion | Learned location of Warlord (-5) 13051 | -7/Zion | Identified exit to Proximity Caves 13059 | -7/Zion | Entered Proximity Caves 13059 | -6/Proximity Caves | Accompanied by 4 allies 13189 | -6/Proximity Caves | Identified Hacking Drone Bay 13330 | -6/Proximity Caves | Spotted B-75 Beast 13352 | -6/Proximity Caves | Revealed the true nature of CR-A16's Pointy Stick 13355 | -6/Proximity Caves | Destroyed B-75 Beast 13441 | -6/Proximity Caves | Discovered new exit (range 6) 13529 | -6/Proximity Caves | Identified exit to Factory 13535 | -6/Proximity Caves | Entered Factory 13535 | -6/Factory | Accompanied by 1 ally 13535 | -6/Factory | Evolved 2 slots: Power x1, Utility x1 13538 | -6/Factory | Loaded intel: 46 interactive machine locations 13539 | -6/Factory | Loaded intel: 20 terminal locations 13540 | -6/Factory | Loaded intel: 4 garrison access locations 13814 | -6/Factory | Discovered new exit (range 29) 14056 | -6/Factory | Identified exit to Factory 14216 | -6/Factory | Garrison activated, responded to threat 14266 | -6/Factory | Self-destructed Last Messages --------------- 14245_ Med. Matter Pod fried. 14245_ K-01 Serf destroyed. 14247_ Slug penetrates Fabricator. 14247_ Penetrated by Slug. 14247_ Neutrino Core destroyed. 14250_ Fabricator collapses. 14250_ Fabricator disabled. 14250_ Penetrated by Slug. 14251_ Construction Platform disabled. 14253_ H-66 Slayer misfires. 14253_ Slug penetrates Wall. 14255_ Penetrated by Slug. 14256_ Slug penetrates G-50 Soldier. 14259_ H-66 Slayer IFF system glitched. 14259_ Slug penetrates H-66 Slayer. 14259_ H-66 Slayer destroyed. 14259_ Penetrated by Slug. 14260_ Imp. Medium Treads destroyed. 14263_ R-10 Processor collects Energy Well. 14265_ Lgt. Treads destroyed. Map ----- +----------------------------------------------------+ | | | | | | | | | | | ????????????#????????????????????????????????????? | | ???????????? ##########?????????????????????????? | | ??????????? # ! ?????????????????????????? | | ?# ??????? # ????????????????????????? | | ?# ""??? # ?????????????????????????? | | ?# # ?????????????????????????? | | ?# """ # """ ??????????????????????? | | ?# """"" # """"" #?????????????????????? | | ?# """"" # """"" ??????????????????????? | | ?# # ???????????????????????? | | ?# " " # ""????????????????????????? | | ?# ""G"" # """"????????????????????????? | | ## # """"" #?????????????????????? | | ########+###### #?????????????????????? | | #??# ####+#################+###??????????? | | #### ] ??????????? | | ?????????? | | % % ! """"" ?????????? | | < "" F" b ????????? | | "" g R ????????? | | l@ ????????? | | #### %*%[h g ????????? | | ???# ## = " """" " """" #????????? | | ???##### ###### """ """" """" """??????????????? | | ???????# #????# """" """" """" ""???????????????? | | ########+##???# """" """" """" ""???????????????? | | T" #???# """" """" """"t"????????????????? | | ! #???# """" ""?? """"??????????????????? | | #???# "?"" ""?? ""????????????????????? | | #???? ? ?? ????????????????????? | | #???? ?? ??? ?????????????????????? | | #????###??###???##?????????????????????? | | """""" #????????o?????????????????????????????? | | """""" #??????????????????????????????????????? | | """""" #??????????????????????????????????????? | | """""" #?????????????????????T????????????????? | | #??"???????????????????????????????????? | | #??"???????????????????????????????????? | | ###########??"???????????????????????????????????? | | ?????????????T???????????????????????????"""?????? | | ???????""????"???????????????????????????"""?????? | | ???????"""???"???????????????????????????"S??????? | | ????????R"???"???????????????????????????"""?????? | | ???????"""??????????????????????T?????????""?????? | | ?????????????????????????????????????????????????? | +----------------------------------------------------+ Best States ------------- Heat Dissipation 84 Energy Generation 31 Energy Capacity 515 Matter Stores 300 Matter Capacity 300 Sight Range 23 Terrain Scan Range 16 Terrain Scan Density 10 Armor Coverage 600 Evasion (%) 55 Recoil Reduction 4 Offensive Hacking 10 Item Schematics ----------------- Arm. Wheel | -8/Materials | Scanalyzed Robot Schematics ------------------ B-36 Bruiser | -8/Storage | Hacked Fabricated ------------ B-36 Bruiser | x3 | -7/Factory Alien Tech Used ----------------- None Achievements -------------- None Challenges ------------ None Game ------ Seed TrackerSmartbombDoomcannon Manual? 0 Play Time 01:43:45 Cumulative 78.4 hours Start 2021.06.16 @ 21:32:41 End 2021.06.17 @ 12:57:56 Sessions 3 Manual Loads 0 Difficulty Rogue Special Mode None Game No. 69 Rogue 69 Adventurer 0 Explorer 0 Win Type - Total 2 Types 1/0/1/0/0/0/0/0/0 Lore% 54 Gallery% 57 Achievement% 48 Wizard Run 0 Options --------- ASCII 1 Keyboard 1 Movement Numpad Keybinds 0 Fullscreen 2 Font 18/SmallcapsGlow Map View 76x50 Tactical HUD 1 Map Filters NONE Filters NONE Steam 1 RUN: 445b725f-7d41-480d-b45d-dd10c4736228